[Event "Live Chess"]
[Site "Chess.com"]
[Date "2023.05.20"]
[Round "-"]
[White "Brooms1989"]
[Black "LL220284LL"]
[Result "0-1"]
[WhiteElo "1008"]
[BlackElo "2386"]
[TimeControl "300"]
[EndTime "11:13:59 PDT"]
[Termination "LL220284LL won by checkmate"]

1. e4 {[%clk 0:04:56.9]} 1... g6 {[%clk 0:04:57.8]} 2. d4 {[%clk 0:04:54.5]}
2... Bg7 {[%clk 0:04:56.6]} 3. Nc3 {[%clk 0:04:53.5]} 3... Nf6 {[%clk
0:04:55.2]} 4. Nf3 {[%clk 0:04:51.5]} 4... d6 {[%clk 0:04:53.9]} 5. Bc4 {[%clk
0:04:42.8]} 5... O-O {[%clk 0:04:50.8]} 6. Be3 {[%clk 0:04:37.9]} 6... Nxe4
{[%clk 0:04:47.6]} 7. Nxe4 {[%clk 0:04:32.7]} 7... d5 {[%clk 0:04:46.7]} 8. Bd3
{[%clk 0:04:28.5]} 8... dxe4 {[%clk 0:04:45.8]} 9. Bxe4 {[%clk 0:04:28.4]} 9...
Nd7 {[%clk 0:04:44.9]} 10. Qd2 {[%clk 0:04:25.8]} 10... Nf6 {[%clk 0:04:43.9]}
11. Bd3 {[%clk 0:04:17.1]} 11... Re8 {[%clk 0:04:26.6]} 12. Bh6 {[%clk
0:04:13.9]} 12... Bh8 {[%clk 0:04:25.1]} 13. O-O-O {[%clk 0:04:09.9]} 13... c6
{[%clk 0:04:24.1]} 14. Ng5 {[%clk 0:04:03]} 14... Qxd4 {[%clk 0:04:14.6]} 15. c3
{[%clk 0:03:56]} 15... Qa4 {[%clk 0:04:10.4]} 16. Be2 {[%clk 0:03:44.4]} 16...
Qxa2 {[%clk 0:04:04.6]} 17. Qd8 {[%clk 0:03:39.3]} 17... Qa1+ {[%clk 0:04:01]}
18. Kc2 {[%clk 0:03:38]} 18... Bf5+ {[%clk 0:03:59.6]} 19. Kd2 {[%clk
0:03:35.1]} 19... Raxd8+ {[%clk 0:03:58.1]} 20. Ke3 {[%clk 0:03:34.6]} 20...
Qxb2 {[%clk 0:03:55]} 21. Kf3 {[%clk 0:03:33]} 21... Qxc3+ {[%clk 0:03:53.9]}
22. Kf4 {[%clk 0:03:31.7]} 22... e5# {[%clk 0:03:52.1]} 0-1

[Event "Live Chess"]
[Site "Chess.com"]
[Date "2023.05.20"]
[Round "-"]
[White "ameetghasi100"]
[Black "alexlines8"]
[Result "1-0"]
[WhiteElo "2748"]
[BlackElo "1257"]
[TimeControl "300"]
[EndTime "11:14:01 PDT"]
[Termination "ameetghasi100 won by resignation"]

1. g3 {[%clk 0:04:58.2]} 1... d5 {[%clk 0:04:56.9]} 2. Bg2 {[%clk 0:04:58.1]}
2... Nf6 {[%clk 0:04:55.7]} 3. d3 {[%clk 0:04:58]} 3... e5 {[%clk 0:04:54.7]} 4.
e3 {[%clk 0:04:57]} 4... Nc6 {[%clk 0:04:53.6]} 5. h3 {[%clk 0:04:56.6]} 5...
Be6 {[%clk 0:04:51.6]} 6. Ne2 {[%clk 0:04:56.5]} 6... Bd6 {[%clk 0:04:43.9]} 7.
Nd2 {[%clk 0:04:56.4]} 7... O-O {[%clk 0:04:41.4]} 8. g4 {[%clk 0:04:54.6]} 8...
d4 {[%clk 0:04:29.5]} 9. Ng3 {[%clk 0:04:44.7]} 9... dxe3 {[%clk 0:04:25.1]} 10.
fxe3 {[%clk 0:04:42.6]} 10... e4 {[%clk 0:04:13]} 11. Ndxe4 {[%clk 0:04:33.6]}
11... Nxe4 {[%clk 0:04:03.8]} 12. Nxe4 {[%clk 0:04:33.5]} 12... Bd5 {[%clk
0:03:57.4]} 13. O-O {[%clk 0:04:30.6]} 13... Qe7 {[%clk 0:03:45.3]} 14. Nxd6
{[%clk 0:04:26.4]} 14... Qxd6 {[%clk 0:03:41.8]} 15. e4 {[%clk 0:04:25.1]} 15...
Be6 {[%clk 0:03:38.5]} 16. c3 {[%clk 0:04:24.6]} 16... Rad8 {[%clk 0:03:34.6]}
17. d4 {[%clk 0:04:22.6]} 17... Bc4 {[%clk 0:03:21]} 18. Bf4 {[%clk 0:04:21.1]}
18... Qe6 {[%clk 0:03:04.4]} 19. Rf2 {[%clk 0:04:18.7]} 19... Ne7 {[%clk
0:02:50.9]} 20. b3 {[%clk 0:04:15.8]} 20... Ba6 {[%clk 0:02:48.6]} 21. d5 {[%clk
0:04:12.4]} 21... Qb6 {[%clk 0:02:41.9]} 22. c4 {[%clk 0:04:08.1]} 22... Ng6
{[%clk 0:02:34.7]} 23. Bg3 {[%clk 0:04:01.4]} 23... Rfe8 {[%clk 0:02:31.2]} 24.
Qf3 {[%clk 0:03:53.9]} 24... f6 {[%clk 0:02:19.4]} 25. Re1 {[%clk 0:03:51.2]}
25... Qd4 {[%clk 0:02:07.6]} 26. h4 {[%clk 0:03:44.8]} 26... c6 {[%clk
0:01:50.8]} 27. g5 {[%clk 0:03:42.2]} 27... fxg5 {[%clk 0:01:37.5]} 28. hxg5
{[%clk 0:03:40]} 28... Rf8 {[%clk 0:01:34]} 29. Qe3 {[%clk 0:03:34.6]} 29...
Qxe3 {[%clk 0:01:26.9]} 30. Rxe3 {[%clk 0:03:34.5]} 30... Rxf2 {[%clk
0:01:22.1]} 31. Kxf2 {[%clk 0:03:34.4]} 31... cxd5 {[%clk 0:01:19.5]} 32. cxd5
{[%clk 0:03:32.8]} 32... Kf7 {[%clk 0:01:15.8]} 33. e5 {[%clk 0:03:29.7]} 33...
b6 {[%clk 0:01:04.6]} 34. e6+ {[%clk 0:03:25.4]} 34... Ke8 {[%clk 0:00:55.3]}
35. d6 {[%clk 0:03:25.3]} 35... Bc8 {[%clk 0:00:52.4]} 36. Bc6+ {[%clk
0:03:23.6]} 36... Kf8 {[%clk 0:00:50.5]} 37. e7+ {[%clk 0:03:22.1]} 37... Nxe7
{[%clk 0:00:47.5]} 38. dxe7+ {[%clk 0:03:22]} 38... Kf7 {[%clk 0:00:44]} 39.
exd8=Q {[%clk 0:03:21.9]} 39... Bb7 {[%clk 0:00:40.2]} 40. Qe7+ {[%clk 0:03:21]}
40... Kg6 {[%clk 0:00:38.6]} 41. Be8+ {[%clk 0:03:20.5]} 1-0

[Event "Live Chess"]
[Site "Chess.com"]
[Date "2023.05.20"]
[Round "-"]
[White "KeithArkell"]
[Black "Pablo_dmp"]
[Result "1-0"]
[WhiteElo "2604"]
[BlackElo "1864"]
[TimeControl "300"]
[EndTime "11:14:04 PDT"]
[Termination "KeithArkell won by resignation"]

1. d4 {[%clk 0:04:58.1]} 1... d5 {[%clk 0:04:58.2]} 2. Nf3 {[%clk 0:04:57.2]}
2... Nf6 {[%clk 0:04:57.2]} 3. c4 {[%clk 0:04:56.5]} 3... e6 {[%clk 0:04:56.1]}
4. cxd5 {[%clk 0:04:55.5]} 4... exd5 {[%clk 0:04:55.1]} 5. Nc3 {[%clk
0:04:55.2]} 5... Bb4 {[%clk 0:04:44.6]} 6. Qa4+ {[%clk 0:04:53.6]} 6... Nc6
{[%clk 0:04:43.5]} 7. Bg5 {[%clk 0:04:52.6]} 7... Bxc3+ {[%clk 0:04:37.9]} 8.
bxc3 {[%clk 0:04:51.3]} 8... Bd7 {[%clk 0:04:35.9]} 9. e3 {[%clk 0:04:48.2]}
9... h6 {[%clk 0:04:33.2]} 10. Bxf6 {[%clk 0:04:46.8]} 10... Qxf6 {[%clk
0:04:33.1]} 11. Be2 {[%clk 0:04:44.8]} 11... Ne5 {[%clk 0:04:29.1]} 12. dxe5
{[%clk 0:04:35.8]} 12... Qxf3 {[%clk 0:04:20.1]} 13. Qxd7+ {[%clk 0:04:33.7]}
13... Kxd7 {[%clk 0:04:20]} 14. Bxf3 {[%clk 0:04:32.9]} 1-0

[Event "Live Chess"]
[Site "Chess.com"]
[Date "2023.05.20"]
[Round "-"]
[White "JoshMcK"]
[Black "alanmike75"]
[Result "0-1"]
[WhiteElo "1526"]
[BlackElo "1515"]
[TimeControl "300"]
[EndTime "11:14:11 PDT"]
[Termination "alanmike75 won by resignation"]

1. e4 {[%clk 0:04:59.1]} 1... e5 {[%clk 0:04:58.8]} 2. Nf3 {[%clk 0:04:57.7]}
2... Nc6 {[%clk 0:04:57.7]} 3. Bb5 {[%clk 0:04:57.4]} 3... d6 {[%clk 0:04:55.6]}
4. d4 {[%clk 0:04:54.9]} 4... exd4 {[%clk 0:04:54.1]} 5. Nxd4 {[%clk 0:04:54.8]}
5... Bd7 {[%clk 0:04:53.2]} 6. Nc3 {[%clk 0:04:53.1]} 6... Nf6 {[%clk 0:04:52]}
7. O-O {[%clk 0:04:51.1]} 7... Be7 {[%clk 0:04:50.9]} 8. Nxc6 {[%clk 0:04:48.6]}
8... bxc6 {[%clk 0:04:49]} 9. Bd3 {[%clk 0:04:48]} 9... O-O {[%clk 0:04:47.8]}
10. Be3 {[%clk 0:04:35.3]} 10... d5 {[%clk 0:04:45.2]} 11. h3 {[%clk 0:04:29.9]}
11... Be6 {[%clk 0:04:38.7]} 12. Be2 {[%clk 0:04:19.8]} 12... Nxe4 {[%clk
0:04:33.5]} 13. Nxe4 {[%clk 0:04:18.1]} 13... dxe4 {[%clk 0:04:31.8]} 14. Qxd8
{[%clk 0:04:17.7]} 14... Rfxd8 {[%clk 0:04:29.6]} 15. f3 {[%clk 0:04:17]} 15...
exf3 {[%clk 0:04:26.9]} 16. Bxf3 {[%clk 0:04:16.9]} 16... Bd5 {[%clk 0:04:25.6]}
17. Rad1 {[%clk 0:04:12.2]} 17... a6 {[%clk 0:04:16.7]} 18. Bxd5 {[%clk
0:04:09.3]} 18... cxd5 {[%clk 0:04:13.8]} 19. b3 {[%clk 0:04:08.7]} 19... c5
{[%clk 0:04:10]} 20. Bf4 {[%clk 0:04:03.1]} 20... d4 {[%clk 0:04:02.3]} 21. Rfe1
{[%clk 0:04:01.3]} 21... Bf6 {[%clk 0:04:00.5]} 22. Be5 {[%clk 0:03:56.9]} 22...
Bxe5 {[%clk 0:03:42]} 23. Rxe5 {[%clk 0:03:56.8]} 23... Rac8 {[%clk 0:03:40.6]}
24. Kf2 {[%clk 0:03:49.9]} 24... Kf8 {[%clk 0:03:37.5]} 25. Ke2 {[%clk
0:03:47.8]} 25... Re8 {[%clk 0:03:25.2]} 26. Rxe8+ {[%clk 0:03:45.8]} 26...
Rxe8+ {[%clk 0:03:24]} 27. Kd3 {[%clk 0:03:45]} 27... Re3+ {[%clk 0:03:20.7]}
28. Kc4 {[%clk 0:03:43.9]} 28... Rc3+ {[%clk 0:03:19.3]} 29. Kd5 {[%clk
0:03:41.8]} 29... Rxc2 {[%clk 0:03:17.7]} 30. a4 {[%clk 0:03:35.1]} 30... f6
{[%clk 0:03:12.7]} 31. Re1 {[%clk 0:03:28.1]} 31... d3 {[%clk 0:03:01.2]} 32.
Rd1 {[%clk 0:03:25.3]} 32... c4 {[%clk 0:02:55.9]} 33. bxc4 {[%clk 0:03:24]}
33... d2 {[%clk 0:02:52.3]} 34. c5 {[%clk 0:03:22.1]} 34... Ke7 {[%clk
0:02:51.1]} 35. c6 {[%clk 0:03:19.6]} 35... Kd8 {[%clk 0:02:49.9]} 36. Kd6
{[%clk 0:03:18.5]} 36... a5 {[%clk 0:02:40]} 37. c7+ {[%clk 0:03:16.3]} 37...
Rxc7 {[%clk 0:02:35.9]} 38. Ke6 {[%clk 0:03:14.8]} 38... Rd7 {[%clk 0:02:27.8]}
39. Kf5 {[%clk 0:03:12.7]} 39... Ke8 {[%clk 0:02:26.7]} 40. g4 {[%clk
0:03:10.7]} 40... Kf7 {[%clk 0:02:25.5]} 41. h4 {[%clk 0:03:09.9]} 41... g6+
{[%clk 0:02:23.8]} 42. Kf4 {[%clk 0:03:08.7]} 42... Ke6 {[%clk 0:02:19.2]} 43.
Ke4 {[%clk 0:03:06.9]} 43... h5 {[%clk 0:02:16.1]} 44. gxh5 {[%clk 0:03:04.6]}
44... gxh5 {[%clk 0:02:15]} 45. Ke3 {[%clk 0:03:03.7]} 45... Kf5 {[%clk
0:02:09.5]} 46. Rf1+ {[%clk 0:03:01.7]} 46... Ke5 {[%clk 0:02:08.3]} 47. Rd1
{[%clk 0:03:01.3]} 47... f5 {[%clk 0:02:02.3]} 48. Kf3 {[%clk 0:02:59.2]} 48...
Rd3+ {[%clk 0:01:59]} 49. Ke2 {[%clk 0:02:58]} 49... Rh3 {[%clk 0:01:54.9]} 50.
Rxd2 {[%clk 0:02:56.3]} 50... Rh2+ {[%clk 0:01:53.5]} 51. Ke3 {[%clk 0:02:55.6]}
51... Rxd2 {[%clk 0:01:51.7]} 52. Kxd2 {[%clk 0:02:55.5]} 52... Kf4 {[%clk
0:01:50.4]} 53. Ke2 {[%clk 0:02:54.6]} 53... Kg3 {[%clk 0:01:49.3]} 0-1

[Event "Live Chess"]
[Site "Chess.com"]
[Date "2023.05.20"]
[Round "-"]
[White "stevegleds"]
[Black "wadsy27"]
[Result "0-1"]
[WhiteElo "614"]
[BlackElo "2588"]
[TimeControl "300"]
[EndTime "11:14:19 PDT"]
[Termination "wadsy27 won by resignation"]

1. e4 {[%clk 0:04:54.9]} 1... e6 {[%clk 0:04:57.1]} 2. d4 {[%clk 0:04:53.4]}
2... d5 {[%clk 0:04:57]} 3. Nf3 {[%clk 0:04:51]} 3... dxe4 {[%clk 0:04:56.1]} 4.
Ne5 {[%clk 0:04:48.1]} 4... Nf6 {[%clk 0:04:53.4]} 5. Bg5 {[%clk 0:04:45]} 5...
c5 {[%clk 0:04:51.8]} 6. c3 {[%clk 0:04:39.2]} 6... Nbd7 {[%clk 0:04:46.5]} 7.
Bb5 {[%clk 0:04:36.4]} 7... a6 {[%clk 0:04:37.1]} 8. Qa4 {[%clk 0:04:33.5]} 8...
Rb8 {[%clk 0:04:19.6]} 9. Bxd7+ {[%clk 0:04:24.2]} 9... Bxd7 {[%clk 0:04:18.3]}
10. Nxd7 {[%clk 0:04:15]} 10... Qxd7 {[%clk 0:04:17.4]} 11. Qc4 {[%clk
0:04:12.6]} 11... b5 {[%clk 0:04:14.7]} 12. Qe2 {[%clk 0:04:09.3]} 12... cxd4
{[%clk 0:04:13.2]} 13. cxd4 {[%clk 0:04:07.6]} 13... Bb4+ {[%clk 0:04:10.8]} 14.
Nc3 {[%clk 0:04:05]} 14... Qxd4 {[%clk 0:04:09.3]} 15. O-O {[%clk 0:03:57.8]}
15... Bxc3 {[%clk 0:04:08.4]} 16. bxc3 {[%clk 0:03:56.7]} 16... Qxc3 {[%clk
0:04:07.5]} 17. Rac1 {[%clk 0:03:50.4]} 17... Qe5 {[%clk 0:04:06.2]} 18. Bxf6
{[%clk 0:03:45.1]} 18... Qxf6 {[%clk 0:04:03.8]} 19. Qxe4 {[%clk 0:03:42.7]}
19... O-O {[%clk 0:04:03]} 20. Rc3 {[%clk 0:03:39.9]} 20... Qxc3 {[%clk
0:03:59.3]} 0-1

[Event "Live Chess"]
[Site "Chess.com"]
[Date "2023.05.20"]
[Round "-"]
[White "tpm07"]
[Black "AttackingSnowLeopard"]
[Result "1-0"]
[WhiteElo "1961"]
[BlackElo "2082"]
[TimeControl "300"]
[EndTime "11:14:29 PDT"]
[Termination "tpm07 won by resignation"]

1. e4 {[%clk 0:04:55.5]} 1... e5 {[%clk 0:04:58.7]} 2. Nf3 {[%clk 0:04:53.1]}
2... Nc6 {[%clk 0:04:57.7]} 3. Bb5 {[%clk 0:04:47.5]} 3... Nf6 {[%clk
0:04:55.2]} 4. d3 {[%clk 0:04:44]} 4... Bc5 {[%clk 0:04:52.8]} 5. Bxc6 {[%clk
0:04:42.8]} 5... dxc6 {[%clk 0:04:51.5]} 6. Be3 {[%clk 0:04:40.9]} 6... Bxe3
{[%clk 0:04:48]} 7. fxe3 {[%clk 0:04:40.8]} 7... Ng4 {[%clk 0:04:47.3]} 8. Qe2
{[%clk 0:04:37.7]} 8... f6 {[%clk 0:04:44.3]} 9. h3 {[%clk 0:04:34.7]} 9... Nh6
{[%clk 0:04:42.5]} 10. Nbd2 {[%clk 0:04:34.2]} 10... Nf7 {[%clk 0:04:41.4]} 11.
O-O-O {[%clk 0:04:31.6]} 11... Be6 {[%clk 0:04:39.3]} 12. Kb1 {[%clk 0:04:28.2]}
12... Qd6 {[%clk 0:04:37.1]} 13. Nh4 {[%clk 0:04:14.4]} 13... O-O-O {[%clk
0:04:34.5]} 14. Rdf1 {[%clk 0:04:08.2]} 14... c5 {[%clk 0:04:26.1]} 15. Nf5
{[%clk 0:04:04.6]} 15... Bxf5 {[%clk 0:04:23.9]} 16. Rxf5 {[%clk 0:04:03]} 16...
Qe6 {[%clk 0:04:22]} 17. g4 {[%clk 0:03:54.2]} 17... Nd6 {[%clk 0:04:19.7]} 18.
Rf2 {[%clk 0:03:46.9]} 18... b6 {[%clk 0:04:15]} 19. Rhf1 {[%clk 0:03:43.5]}
19... h5 {[%clk 0:04:11.1]} 20. gxh5 {[%clk 0:03:40.9]} 20... Qxh3 {[%clk
0:04:07.1]} 21. Rh2 {[%clk 0:03:25.8]} 21... Qe6 {[%clk 0:04:04.5]} 22. Qg2
{[%clk 0:03:18.1]} 22... Rd7 {[%clk 0:04:01]} 23. Qg6 {[%clk 0:02:57.9]} 23...
Rh6 {[%clk 0:03:55.6]} 24. Qg3 {[%clk 0:02:53.6]} 24... c4 {[%clk 0:03:53.5]}
25. Nxc4 {[%clk 0:02:49.4]} 25... Nxc4 {[%clk 0:03:51.1]} 26. dxc4 {[%clk
0:02:46]} 26... Qxc4 {[%clk 0:03:49.7]} 27. Rhh1 {[%clk 0:02:33]} 27... Rd6
{[%clk 0:03:45.5]} 28. Qxg7 {[%clk 0:02:28]} 28... Rd2 {[%clk 0:03:41.4]} 29.
Rc1 {[%clk 0:02:14.8]} 29... Rxh5 {[%clk 0:03:15.9]} 30. Rxh5 {[%clk 0:01:48.7]}
30... Qxe4 {[%clk 0:03:14.8]} 31. Rh8+ {[%clk 0:01:36.9]} 31... Kb7 {[%clk
0:03:11.9]} 32. Qxf6 {[%clk 0:01:21.8]} 32... Qxe3 {[%clk 0:03:08.2]} 33. Rhh1
{[%clk 0:01:15]} 33... e4 {[%clk 0:03:03.4]} 34. Rhe1 {[%clk 0:01:05.7]} 34...
Qf3 {[%clk 0:02:37.9]} 35. Qxf3 {[%clk 0:00:58.4]} 35... exf3 {[%clk 0:02:37.8]}
36. Rf1 {[%clk 0:00:56.7]} 36... f2 {[%clk 0:02:34.4]} 37. b3 {[%clk 0:00:54.1]}
37... Kc6 {[%clk 0:02:31.8]} 38. Kb2 {[%clk 0:00:53]} 38... Kd5 {[%clk
0:02:24.1]} 39. Kc3 {[%clk 0:00:51]} 39... Re2 {[%clk 0:02:22.4]} 40. Kd3 {[%clk
0:00:47.9]} 1-0

[Event "Live Chess"]
[Site "Chess.com"]
[Date "2023.05.20"]
[Round "-"]
[White "lightningorderyt"]
[Black "Alan_Richardson"]
[Result "0-1"]
[WhiteElo "558"]
[BlackElo "1674"]
[TimeControl "300"]
[EndTime "11:14:36 PDT"]
[Termination "Alan_Richardson won by checkmate"]

1. e4 {[%clk 0:04:53.7]} 1... c5 {[%clk 0:04:58]} 2. Nc3 {[%clk 0:04:51.8]} 2...
Nc6 {[%clk 0:04:54.5]} 3. Nge2 {[%clk 0:04:49.2]} 3... g6 {[%clk 0:04:52.1]} 4.
Nb5 {[%clk 0:04:45.7]} 4... a6 {[%clk 0:04:47.6]} 5. Nbc3 {[%clk 0:04:37.6]}
5... Bg7 {[%clk 0:04:46.1]} 6. Nf4 {[%clk 0:04:32.3]} 6... e6 {[%clk 0:04:32.4]}
7. Bc4 {[%clk 0:04:18.6]} 7... b5 {[%clk 0:04:27.8]} 8. Bb3 {[%clk 0:04:09.9]}
8... c4 {[%clk 0:04:21.5]} 9. Bxc4 {[%clk 0:04:02.5]} 9... bxc4 {[%clk
0:04:20.1]} 10. Qe2 {[%clk 0:03:56.5]} 10... Qc7 {[%clk 0:04:04.5]} 11. g3
{[%clk 0:03:42.4]} 11... Nd4 {[%clk 0:03:58.3]} 12. Qe3 {[%clk 0:03:34.1]} 12...
Nxc2+ {[%clk 0:03:55.4]} 13. Kd1 {[%clk 0:03:25.4]} 13... Nxe3+ {[%clk
0:03:53.9]} 14. fxe3 {[%clk 0:03:22.5]} 14... Ne7 {[%clk 0:03:47.9]} 15. b3
{[%clk 0:03:20.7]} 15... Bb7 {[%clk 0:03:43.3]} 16. Ba3 {[%clk 0:03:04.4]} 16...
Bxc3 {[%clk 0:03:29.9]} 17. dxc3 {[%clk 0:02:53.2]} 17... Bxe4 {[%clk
0:03:28.6]} 18. Rf1 {[%clk 0:02:35.8]} 18... cxb3 {[%clk 0:03:20.3]} 19. axb3
{[%clk 0:02:32.2]} 19... Qxc3 {[%clk 0:03:15.6]} 20. Rc1 {[%clk 0:02:29.1]}
20... Qxb3+ {[%clk 0:03:13.3]} 21. Kd2 {[%clk 0:02:12.7]} 21... Qxa3 {[%clk
0:03:11.1]} 22. h4 {[%clk 0:02:03.6]} 22... O-O {[%clk 0:03:03]} 23. h5 {[%clk
0:02:00.6]} 23... Rfc8 {[%clk 0:02:58]} 24. hxg6 {[%clk 0:01:57.8]} 24... Qb2+
{[%clk 0:02:55.4]} 25. Kd1 {[%clk 0:01:40.9]} 25... Rxc1# {[%clk 0:02:53.4]} 0-1

[Event "Live Chess"]
[Site "Chess.com"]
[Date "2023.05.20"]
[Round "-"]
[White "xx_blindpuffin_xx"]
[Black "NatashaRegan"]
[Result "1-0"]
[WhiteElo "2193"]
[BlackElo "1866"]
[TimeControl "300"]
[EndTime "11:14:37 PDT"]
[Termination "xx_blindpuffin_xx won by checkmate"]

1. d4 {[%clk 0:04:58.6]} 1... Nf6 {[%clk 0:04:57.2]} 2. Bf4 {[%clk 0:04:57.3]}
2... d6 {[%clk 0:04:55.1]} 3. e3 {[%clk 0:04:56.6]} 3... g6 {[%clk 0:04:53.7]}
4. Nf3 {[%clk 0:04:55.8]} 4... Bg7 {[%clk 0:04:52.8]} 5. h3 {[%clk 0:04:55.2]}
5... Nc6 {[%clk 0:04:51.9]} 6. Be2 {[%clk 0:04:54.6]} 6... Bf5 {[%clk 0:04:48]}
7. O-O {[%clk 0:04:53.3]} 7... Qd7 {[%clk 0:04:45.7]} 8. c4 {[%clk 0:04:49.2]}
8... O-O {[%clk 0:04:42]} 9. Nc3 {[%clk 0:04:48]} 9... Ne4 {[%clk 0:04:32.5]}
10. Nxe4 {[%clk 0:04:36.9]} 10... Bxe4 {[%clk 0:04:31.1]} 11. Nd2 {[%clk
0:04:36.3]} 11... Bf5 {[%clk 0:04:20]} 12. g4 {[%clk 0:04:27.1]} 12... Be6
{[%clk 0:04:12.6]} 13. d5 {[%clk 0:04:26.2]} 13... Bxb2 {[%clk 0:04:05.8]} 14.
Rb1 {[%clk 0:04:16.1]} 14... Be5 {[%clk 0:03:51.7]} 15. dxe6 {[%clk 0:04:04.9]}
15... Qxe6 {[%clk 0:03:47.1]} 16. Rxb7 {[%clk 0:04:00.3]} 16... Bxf4 {[%clk
0:03:38.9]} 17. exf4 {[%clk 0:03:56.3]} 17... Nd4 {[%clk 0:03:32.2]} 18. Bf3
{[%clk 0:03:50.8]} 18... c5 {[%clk 0:03:23.4]} 19. Re1 {[%clk 0:03:20.5]} 19...
Qf6 {[%clk 0:03:14.4]} 20. Rexe7 {[%clk 0:03:16.3]} 20... Qh4 {[%clk 0:03:10.6]}
21. Bg2 {[%clk 0:03:06.8]} 21... h5 {[%clk 0:03:02.9]} 22. gxh5 {[%clk
0:03:00.1]} 22... gxh5 {[%clk 0:03:00.5]} 23. Nf3 {[%clk 0:02:56]} 23... Qxf4
{[%clk 0:02:56.4]} 24. Nxd4 {[%clk 0:02:53.8]} 24... cxd4 {[%clk 0:02:53.6]} 25.
Qxh5 {[%clk 0:02:49.9]} 25... d3 {[%clk 0:02:46.4]} 26. Re4 {[%clk 0:02:45.8]}
26... Qc1+ {[%clk 0:02:41.6]} 27. Kh2 {[%clk 0:02:44.4]} 27... d2 {[%clk
0:02:32.4]} 28. Rg4# {[%clk 0:02:42.9]} 1-0

[Event "Live Chess"]
[Site "Chess.com"]
[Date "2023.05.20"]
[Round "-"]
[White "minenko-1958"]
[Black "Doge_Dandolo"]
[Result "0-1"]
[WhiteElo "1402"]
[BlackElo "2123"]
[TimeControl "300"]
[EndTime "11:14:38 PDT"]
[Termination "Doge_Dandolo won by resignation"]

1. e4 {[%clk 0:04:57.5]} 1... c6 {[%clk 0:04:58.3]} 2. Nf3 {[%clk 0:04:55.6]}
2... d5 {[%clk 0:04:57.2]} 3. exd5 {[%clk 0:04:54.5]} 3... cxd5 {[%clk
0:04:54.1]} 4. d4 {[%clk 0:04:54.4]} 4... Nc6 {[%clk 0:04:48.7]} 5. h3 {[%clk
0:04:52.4]} 5... Bf5 {[%clk 0:04:41.4]} 6. Bd3 {[%clk 0:04:50.5]} 6... Bxd3
{[%clk 0:04:39.8]} 7. Qxd3 {[%clk 0:04:49.2]} 7... e6 {[%clk 0:04:38.7]} 8. c3
{[%clk 0:04:47.7]} 8... Qc7 {[%clk 0:04:37.3]} 9. O-O {[%clk 0:04:46.3]} 9...
Bd6 {[%clk 0:04:35.8]} 10. a4 {[%clk 0:04:42]} 10... Nf6 {[%clk 0:04:33.5]} 11.
b4 {[%clk 0:04:39.1]} 11... O-O {[%clk 0:04:31.2]} 12. a5 {[%clk 0:04:34.4]}
12... b6 {[%clk 0:04:27.1]} 13. b5 {[%clk 0:04:26.9]} 13... Nxa5 {[%clk
0:04:24.3]} 14. Nbd2 {[%clk 0:04:19.6]} 14... Rfc8 {[%clk 0:04:18.9]} 15. Bb2
{[%clk 0:04:12.2]} 15... Nc4 {[%clk 0:04:06.8]} 16. Nxc4 {[%clk 0:04:10]} 16...
Qxc4 {[%clk 0:04:05.6]} 17. Qxc4 {[%clk 0:04:08.3]} 17... Rxc4 {[%clk
0:04:04.3]} 18. Nd2 {[%clk 0:04:03.4]} 18... Rc7 {[%clk 0:04:01.5]} 19. f3
{[%clk 0:04:00.9]} 19... Bf4 {[%clk 0:03:59.7]} 20. Nb3 {[%clk 0:03:56.7]} 20...
Rac8 {[%clk 0:03:54.6]} 21. Rfe1 {[%clk 0:03:53.9]} 21... Rb7 {[%clk 0:03:49.7]}
22. Re2 {[%clk 0:03:51.9]} 22... Rc4 {[%clk 0:03:46.6]} 23. Kf2 {[%clk
0:03:36.3]} 23... Ne8 {[%clk 0:03:44.1]} 24. g3 {[%clk 0:03:35]} 24... Bb8
{[%clk 0:03:38.4]} 25. Nd2 {[%clk 0:03:32.2]} 25... Rc8 {[%clk 0:03:33.9]} 26.
f4 {[%clk 0:03:29.7]} 26... Nc7 {[%clk 0:03:30.7]} 27. c4 {[%clk 0:03:16.3]}
27... dxc4 {[%clk 0:03:27.3]} 28. Nxc4 {[%clk 0:03:15]} 28... Nxb5 {[%clk
0:03:22.8]} 29. Ne5 {[%clk 0:03:13.8]} 29... Bxe5 {[%clk 0:03:18.3]} 30. dxe5
{[%clk 0:03:11.4]} 30... a5 {[%clk 0:03:15.7]} 31. Rd2 {[%clk 0:03:08.6]} 31...
h5 {[%clk 0:03:13.2]} 32. h4 {[%clk 0:03:07.1]} 32... Kf8 {[%clk 0:02:57.2]} 33.
Rad1 {[%clk 0:03:05.2]} 33... Ke8 {[%clk 0:02:54.7]} 34. Kf3 {[%clk 0:02:55.6]}
34... Ra8 {[%clk 0:02:51.2]} 35. Rd3 {[%clk 0:02:46.2]} 35... a4 {[%clk
0:02:48.4]} 36. Ba3 {[%clk 0:02:41.6]} 36... Nxa3 {[%clk 0:02:46.2]} 37. Rxa3
{[%clk 0:02:40]} 37... b5 {[%clk 0:02:44.6]} 38. Rda1 {[%clk 0:02:30.8]} 38...
Kd7 {[%clk 0:02:39.3]} 39. g4 {[%clk 0:02:28.5]} 39... g6 {[%clk 0:02:36.5]} 40.
gxh5 {[%clk 0:02:27.4]} 40... gxh5 {[%clk 0:02:35.5]} 41. Ke3 {[%clk 0:02:25.6]}
41... Kc6 {[%clk 0:02:34]} 42. Ke4 {[%clk 0:02:24.6]} 42... Kc5 {[%clk
0:02:28.4]} 43. f5 {[%clk 0:02:21.2]} 43... b4 {[%clk 0:02:20]} 44. Rxa4 {[%clk
0:02:17.4]} 44... Rxa4 {[%clk 0:02:19.4]} 45. Rxa4 {[%clk 0:02:16.1]} 45... b3
{[%clk 0:02:18.9]} 46. Ra1 {[%clk 0:02:14.3]} 46... b2 {[%clk 0:02:17.7]} 47.
Rb1 {[%clk 0:02:13]} 47... Rb4+ {[%clk 0:02:12.8]} 48. Kd3 {[%clk 0:02:10.1]}
48... exf5 {[%clk 0:02:09.1]} 49. Kc3 {[%clk 0:02:08]} 49... Rb7 {[%clk
0:02:06.5]} 50. Rxb2 {[%clk 0:02:04.4]} 50... Rxb2 {[%clk 0:02:05]} 51. Kxb2
{[%clk 0:02:03.4]} 51... Kd4 {[%clk 0:02:04]} 0-1